Workbook

Sheet Лист1
N1: Приложение 8 к пояснительной записке 2025 года
A2: Параметры финансового обеспечения реализации государственных программ Ленинградской области в 2024-2027 годах
A4: Наименование | B4: 2024 год уточненный план на 01.08.2024 | E4: 2025 год | J4: 2026 год | N4: 2027 год
B5: Всего | C5: в том числе за счет средств областного бюджета | D5: уд. вес, % | E5: Проект | F5: в том числе за счет средств областного бюджета | H5: уд. вес, % | I5: темп роста, % | J5: Проект | K5: в том числе за счет средств областного бюджета | M5: уд. вес, % | N5: Проект | O5: в том числе за счет средств областного бюджета | Q5: уд. вес, %
F6: тыс. рублей | G6: Темп роста, % | K6: тыс. рублей | L6: Темп роста, % | O6: тыс. рублей | P6: Темп роста, %
A7: 1 | B7: 2 | C7: 3 | D7: 4 | E7: 5 | F7: 6 | G7: 7=6/3 | H7: 8 | I7: 9=5/2 | J7: 10 | K7: 11 | L7: 12=11/6 | M7: 13 | N7: 14 | O7: 15 | P7: 16=15/11 | Q7: 17
A8: Расходы областного бюджета, всего | B8: =B10+B29 -> 255089207.1 | C8: =C10+C29 -> 237926888.2 | D8: =SUM(D11:D29) -> 100 | E8: =E10+E29 -> 263478758.2 | F8: =F10+F29 -> 247697655 | G8: =F8/C8*100 -> 104.1066257 | H8: =SUM(H11:H29) -> 100 | I8: =E8/B8*100 -> 103.2888695 | J8: =J10+J29 -> 247461068.7 | K8: =K10+K29 -> 230966150.4 | L8: =K8/F8*100 -> 93.24519055 | M8: =SUM(M11:M29) -> 100 | N8: =N10+N29 -> 232578058.6 | O8: =O10+O29 -> 230615819.2 | P8: =O8/K8*100 -> 99.84831925 | Q8: =SUM(Q11:Q29) -> 100
A9: из них:
A10: Расходы на реализацию государственных программ Ленинградской области, в том числе: | B10: =SUM(B11:B28) -> 232155557.1 | C10: =SUM(C11:C28) -> 216926046.4 | D10: =B10/$B$8*100 -> 91.00955691 | E10: =SUM(E11:E28) -> 231660604.8 | F10: =SUM(F11:F28) -> 216606482.7 | G10: =F10/C10*100 -> 99.85268542 | H10: =E10/$E$8*100 -> 87.92382596 | I10: =E10/B10*100 -> 99.78680144 | J10: =SUM(J11:J28) -> 215932794.2 | K10: =SUM(K11:K28) -> 200201245.3 | L10: =K10/F10*100 -> 92.42624819 | M10: =J10/$J$8*100 -> 87.25929914 | N10: =SUM(N11:N28) -> 201762080.7 | O10: =SUM(O11:O28) -> 199819921.4 | P10: =O10/K10*100 -> 99.80952971 | Q10: =N10/$N$8*100 -> 86.75026437
A11: Развитие здравоохранения в Ленинградской области | B11: 32668278.2 | C11: 30515991.5 | D11: =B11/$B$8*100 -> 12.80660933 | E11: =34300617.1+24272.5 -> 34324889.6 | F11: =32056065.8+24272.5 -> 32080338.3 | G11: =F11/C11*100 -> 105.1263181 | H11: =E11/$E$8*100 -> 13.02757377 | I11: =E11/B11*100 -> 105.0710092 | J11: 31610860.7 | K11: 30351909 | L11: =K11/F11*100 -> 94.61218493 | M11: =J11/$J$8*100 -> 12.77407427 | N11: 29925808.3 | O11: 29925808.3 | P11: =O11/K11*100 -> 98.59613212 | Q11: =N11/$N$8*100 -> 12.86699549
A12: Современное образование Ленинградской области | B12: 56860361.3 | C12: 54091526.1 | D12: =B12/$B$8*100 -> 22.29038302 | E12: 57486719.4 | F12: 55717863.2 | G12: =F12/C12*100 -> 103.0066393 | H12: 21.81835067 | I12: =E12/B12*100 -> 101.1015725 | J12: 53782740.8 | K12: 52250106.2 | L12: =K12/F12*100 -> 93.77622041 | M12: 21.73381901 | N12: 50628461.5 | O12: 50628461.5 | P12: 96.89638009 | Q12: 21.76837394
A13: Социальная поддержка отдельных категорий граждан в Ленинградской области | B13: 36643174.9 | C13: 33265693.1 | D13: 14.36484723 | E13: =43007427.9+60000 -> 43067427.9 | F13: =40015102.1+60000 -> 40075102.1 | G13: 120.4697644 | H13: 16.34569261 | I13: 117.5319224 | J13: =42322528.7+60000 -> 42382528.7 | K13: =39254975.1+60000 -> 39314975.1 | L13: 98.10324376 | M13: 17.12694806 | N13: =39266699.8+60000 -> 39326699.8 | O13: =39266699.8+60000 -> 39326699.8 | P13: 100.0298225 | Q13: 16.90903262
A14: Развитие физической культуры и спорта в Ленинградской области | B14: 3837444.8 | C14: 3818782.9 | D14: 1.504354043 | E14: 4111460.1 | F14: 4021460.1 | G14: 105.3073769 | H14: 1.560452208 | I14: 107.1405666 | J14: 2791434.5 | K14: 2755434.5 | L14: 68.51826032 | M14: 1.12802976 | N14: 1575202.4 | O14: 1575202.4 | P14: 57.16711466 | Q14: 0.6772790217
A15: Развитие культуры в Ленинградской области | B15: 4873137.6 | C15: 4797287.5 | D15: 1.910366046 | E15: 4950606.4 | F15: 4943576 | G15: 103.0494003 | H15: 1.878939476 | I15: 101.5897109 | J15: 4971164.3 | K15: 4702247.9 | L15: 95.11834955 | M15: 2.008867223 | N15: 4058542.9 | O15: 4058542.9 | P15: 86.31069621 | Q15: 1.745023982
A16: Формирование городской среды и обеспечение качественным жильем граждан на территории Ленинградской области | B16: 22310995.5 | C16: 20359514.2 | D16: 8.746350249 | E16: 6023662.5 | F16: 5960393.4 | G16: 29.27571523 | H16: 2.286204224 | I16: 26.9986272 | J16: 3335265.1 | K16: 3276222.4 | L16: 54.96654634 | M16: 1.347793864 | N16: 8962575.9 | O16: 8962575.9 | P16: 273.5643313 | Q16: 3.85357757
A17: Обеспечение устойчивого функционирования и развития коммунальной и инженерной инфраструктуры и повышение энергоэффективности в Ленинградской области | B17: 16199887.9 | C17: 15970311.9 | D17: 6.350675548 | E17: 15232310.8 | F17: 15232310.8 | G17: 95.37891868 | H17: 5.78122916 | I17: 94.02726052 | J17: 13143626.2 | K17: 13143626.2 | L17: 86.28780211 | M17: 5.311391513 | N17: 12572289.7 | O17: 12572289.7 | P17: 95.65312881 | Q17: 5.405621569
A18: Безопасность Ленинградской области | B18: 4740905.2 | C18: 4740905.2 | D18: 1.858528338 | E18: =5284704+29910.4 -> 5314614.4 | F18: =5284704+29910.4 -> 5314614.4 | G18: 112.1012586 | H18: 2.017094067 | I18: 112.1012586 | J18: 4838368.7 | K18: 4838368.7 | L18: 91.0389416 | M18: 1.955203994 | N18: 4838368.7 | O18: 4838368.7 | P18: 100 | Q18: 2.080320357
A19: Охрана окружающей среды Ленинградской области | B19: 2986086 | C19: 2421782.1 | D19: 1.170604603 | E19: 3152031.7 | F19: 2614410.3 | G19: 107.9539856 | H19: 1.196313404 | I19: 105.5572981 | J19: 2944219.7 | K19: 2372279.7 | L19: 90.73861513 | M19: 1.189770866 | N19: 2231470.2 | O19: 2231470.2 | P19: 94.06438035 | Q19: 0.9594500072
A20: Цифровое развитие Ленинградской области | B20: 5066494 | C20: 5064285.3 | D20: 1.986165568 | E20: 6237677.4 | F20: 6235486.2 | G20: 123.1266769 | H20: 2.367430848 | I20: 123.1162496 | J20: 5641312.7 | K20: 5639044 | L20: 90.43471221 | M20: 2.279676852 | N20: 5620047.2 | O20: 5620047.2 | P20: 99.6631202 | Q20: 2.416413325
A21: Стимулирование экономической активности Ленинградской области | B21: 2179812.4 | C21: 2028979.7 | D21: 0.8545294506 | E21: 1961229.3 | F21: 1960628.1 | G21: 96.63123293 | H21: 0.7443595504 | I21: 89.97238937 | J21: 1779155.3 | K21: 1778601.4 | L21: 90.71589864 | M21: 0.7189637179 | N21: 1638814.4 | O21: 1638814.4 | P21: 92.1406224 | Q21: 0.7046298391
A22: Развитие транспортной системы Ленинградской области | B22: 22797511.5 | C22: 20545223.4 | D22: 8.937074116 | E22: =27233716.5-60000 -> 27173716.5 | F22: =22001816.9-60000 -> 21941816.9 | G22: 106.7976555 | H22: 10.31343729 | I22: 119.1959767 | J22: =27831360.1-60000 -> 27771360.1 | K22: =20783963.1-60000 -> 20723963.1 | L22: 94.4496219 | M22: 11.22251684 | N22: =21772692.8-60000 -> 21712692.8 | O22: =19830533.5-60000 -> 19770533.5 | P22: 95.39938575 | Q22: 9.335658286
A23: Развитие сельского хозяйства Ленинградской области | B23: 6571474.5 | C23: 5802581.9 | D23: 2.576147605 | E23: 6444571.4 | F23: 5662551.3 | G23: 97.58675358 | H23: 2.445954825 | I23: 98.06887937 | J23: 6293925.9 | K23: 5425307.9 | L23: 95.81030904 | M23: 2.543400436 | N23: 5332943.7 | O23: 5332943.7 | P23: 98.29753073 | Q23: 2.292969394
A24: Управление государственными финансами и государственным долгом Ленинградской области | B24: 8352510.6 | C24: 8352510.6 | D24: 3.274348882 | E24: =8991336.9+294247.3 -> 9285584.2 | F24: =8991336.9+294247.3 -> 9285584.2 | G24: 111.1711753 | H24: 3.524224975 | I24: 111.1711753 | J24: =9525324+79172.1 -> 9604496.1 | K24: =9525324+79172.1 -> 9604496.1 | L24: 103.434484 | M24: 3.881214993 | N24: 10513624.8 | O24: 10513624.8 | P24: 109.4656574 | Q24: 4.520471477
A25: Устойчивое общественное развитие в Ленинградской области | B25: 2703312.9 | C25: 2635447.2 | D25: 1.059751971 | E25: 2889302 | F25: 2889302 | G25: 109.6323235 | H25: 1.096597699 | I25: 106.8800434 | J25: 1582809.1 | K25: 1582809.1 | L25: 54.78171198 | M25: 0.6396194393 | N25: 1459862.7 | O25: 1459862.7 | P25: 92.2323924 | Q25: 0.6276871983
A26: Содействие занятости населения Ленинградской области | B26: 943961.5 | C26: 663543.7 | D26: 0.3700515246 | E26: =1267109+3480 -> 1270589 | F26: =856728.1+3480 -> 860208.1 | G26: 129.6385001 | H26: 0.4822358389 | I26: 134.601782 | J26: =1050483.7+3480 -> 1053963.7 | K26: =693759+3480 -> 697239 | L26: 81.05468898 | M26: 0.4259109142 | N26: 693759 | O26: 693759 | P26: 99.5008885 | Q26: 0.2982908208
A27: Развитие внутреннего и въездного туризма в Ленинградской области | B27: 657640.3 | C27: 381847.9 | D27: 0.2578079674 | E27: 238911 | F27: 238911 | G27: 62.56705877 | H27: 0.09067562092 | I27: 36.32852184 | J27: 237368.5 | K27: 237368.5 | L27: 99.35436208 | M27: 0.09592155293 | N27: 237368.5 | O27: 237368.5 | P27: 100 | Q27: 0.1020597134
A28: Комплексное развитие сельских территорий Ленинградской области | B28: 1762568 | C28: 1469832.2 | D28: 0.690961417 | E28: 2495301.2 | F28: 1571926.3 | G28: 106.9459698 | H28: 0.9470597239 | I28: 141.571911 | J28: 2168194.1 | K28: 1507246.5 | L28: 95.885316 | M28: 0.8761758411 | N28: 433548.2 | O28: 433548.2 | P28: 28.76425323 | Q28: 0.1864097596
A29: Расходы на непрограммную деятельность | B29: 22933650 | C29: 21000841.8 | D29: =B29/$B$8*100 -> 8.990443093 | E29: =32170063.6+20089.6-371999.8 -> 31818153.4 | F29: =31443082.5+20089.6-371999.8 -> 31091172.3 | G29: 148.0472668 | H29: 12.07617404 | I29: 138.7400322 | J29: =31610926.6-82652.1 -> 31528274.5 | K29: =30847557.2-82652.1 -> 30764905.1 | L29: 98.95061146 | M29: 12.74070086 | N29: 30815977.9 | O29: 30795897.8 | P29: 100.1007404 | Q29: 13.24973563
A30: Условно утвержденные расходы | J30: 5922209 | K30: 5922209 | N30: 12137674.7 | O30: 12137674.7
A31: Всего | B31: =B8+B30 -> 255089207.1 | C31: =C8+C30 -> 237926888.2 | E31: =E8+E30 -> 263478758.2 | F31: =F8+F30 -> 247697655 | G31: =F31/C31*100 -> 104.1066257 | I31: =E31/B31*100 -> 103.2888695 | J31: =J8+J30 -> 253383277.7 | K31: =K8+K30 -> 236888359.4 | L31: =K31/F31*100 -> 95.63609288 | N31: =N8+N30 -> 244715733.3 | O31: =O8+O30 -> 242753493.9 | P31: =O31/K31*100 -> 102.4759066
